[Event "Chess.com Global Championship Knockout"]
[Site "Chess.com"]
[Date "2022.09.22"]
[Round "2"]
[White "Hansen, Eric"]
[Black "Dominguez Perez, Leinier"]
[Result "0-1"]
[WhiteElo "2613"]
[BlackElo "2745"]
[ECO "C48"]
[EventDate "2022.??.??"]
[Annotator "rafael"]
[PlyCount "90"]
[Beauty "7289230591009"]
[EventType "team-tourn"]
[TimeControl "900+2"]

1.e4 e5 2.Nf3 Nf6 3.Nc3 {Needing the win to equalize the match, Hansen decides to run away from a theoretical battle in the main lines of the Petrov Defense.} 3...Nc6 4.Bb5 Nd4 {This is probably the most reliable move for Black. I've seen Dominguez play since the beginning of his international career in the early 2000s and at that time he already had a reputation for having a well-studied opening repertoire.} 5.O-O c6 6.Ba4 $6 {This is inaccurate.} ( 6.Bd3 {is a better try.} ) 6...a5 $1 {A very good move that makes the bishop feel awkward on the queenside. A very similar idea was tried in a game that I analyzed previously from this same tournament (Bortnyk - Xiong, CGC KO 2022).} 7.Bb3 {Hansen spent a long time on this move, a clear indication that he wasn't feeling very comfortable.} 7...d6 8.Ng5 $6 {This is not a good move, but Hansen certainly didn't like his position and was trying to change the trend of the game. 8.Nxd4 or 8.h3 are better, although Black has the advantage in both cases.} ( 8.Nxd4 exd4 9.Ne2 ) ( 8.h3 ) 8...Nxb3 ( 8...d5 $1 {is even better. My computer claims that Black is already close to winning after} 9.exd5 Nxd5 $1 {This was actually played in an email game: Wilshusen - Rekhtman, ICCF email 2017.} ) 9.axb3 h6 10.Nf3 Bg4 $6 {This a very natural move, but the pin is not so dangerous.} ( 10...Be7 {gives a clear advantage for Black, thanks to the bishop pair.} ) 11.h3 Bh5 12.d3 $6 ( 12.d4 $1 {White can fight for the initiative with this move. It's a pawn sacrifice, but it's better for Black not to accept it, since after} 12...Bxf3 ( 12...Qc7 {is better:} 13.Qd3 Be7 14.dxe5 dxe5 15.Nh4 {with a small advantage for White.} ) 13.Qxf3 exd4 14.Ne2 c5 15.c3 $1 dxc3 16.Nxc3 {White has excellent compensation for the pawn.} ) 12...Be7 13.Kh1 {A useful move in order to play g4 or Ne2, as in the game.} ( 13.Ne2 $5 {is also possible:} 13...Bxf3 14.gxf3 {Followed by 15.f4.} ) 13...Nd7 14.Ne2 $5 Bxf3 ( 14...O-O {What is more important: a better pawn structure or the bishop pair $2 Not an easy answer and it's very tempting to capture the knight. But the machine prefers to keep the bishop.} 15.g4 Bg6 16.Ng3 d5 {with a slight advantage for Black.} ) 15.gxf3 Bg5 16.Rg1 $2 {Hansen was already very low on time and this is probably the reason why he played this losing move.} ( 16.f4 $1 {is forced: the pawn structure needs to be improved while there is still time.} 16...exf4 17.Bxf4 Bxf4 18.Nxf4 {with chances for both sides.} ) 16...Qf6 $1 {Now the pawn is stuck on f3 and White is completely paralyzed.} 17.Ng3 Bxc1 18.Rxc1 g6 19.Ra1 Nf8 $1 {Improving the knight's position.} 20.Nf1 Ne6 21.Nd2 b5 $1 22.Rg3 h5 23.Nf1 O-O 24.Ne3 Kh7 25.Ng2 a4 {Black dominates the entire board. A dream position, especially if you only need to make a draw to win the match.} 26.b4 Rad8 27.c3 d5 $1 28.Qe2 d4 29.Rg1 Ra8 ( 29...Nf4 {wins on the spot after} 30.Nxf4 exf4 31.Rg5 dxc3 32.bxc3 Qxc3 ) 30.Qc2 a3 $1 31.c4 a2 32.Ra1 h4 33.Rg4 Qxf3 {Black's position is totally winning, but both players had only a few seconds left. Anything can happen in these situations.} 34.Kh2 Qf6 ( 34...bxc4 {is the most clear-cut way of winning.} 35.Ne1 ( 35.Qxc4 Qxf2 36.Rxa2 Rxa2 37.Qxa2 Nf4 ) 35...Qf6 36.dxc4 d3 $5 37.Nxd3 Rfd8 {and white's position is collapsing.} ) 35.cxb5 cxb5 36.Nxh4 Nf4 37.Nf3 Rac8 ( 37...Kg7 {is better.} ) 38.Qd2 Kg7 $2 {But now this is a blunder.} ( 38...Nh5 $1 {is necessary, in order to prevent the next move.} ) 39.Nxe5 $1 {Hansen exploits a tactical idea to equalize the game.} 39...Qxe5 40.Qxf4 Qxf4+ 41.Rxf4 Ra8 42.e5 $2 {The last mistake. White needed to go back with the rook immediately. A normal game would likely end in a draw, but who knows what would happen with each player down to mere seconds on the clock.} ( 42.Rg4 $1 Rfc8 43.Rg2 Rc2 44.f4 Rxg2+ 45.Kxg2 {With a probable draw.} ) 42...Rfc8 $1 {Now the rook goes to c2 and the game is decided.} 43.Rxd4 Rc2 44.Kg3 Rxb2 45.Rd7 Rb1 0-1

[Event "Chess.com Global Championship Knockout "]
[Site "Chess.com"]
[Date "2022.09.20"]
[Round "1"]
[White "Bortnyk, Olexandr"]
[Black "Xiong, Jeffery"]
[Result "0-1"]
[WhiteElo "2604"]
[BlackElo "2690"]
[ECO "C48"]
[EventDate "2022.??.??"]
[Annotator "Rafael Leitão"]
[PlyCount "92"]
[Beauty "7217155685921"]
[EventType "team-tourn"]
[TimeControl "900+2"]

1.e4 e5 2.Nf3 Nc6 3.Bb5 Nf6 4.d3 Bc5 5.Nc3 {One of the hundreds of ways to play the Anti-Berlin system. This is only the fifth most popular move.} 5...O-O 6.O-O Re8 7.Be3 $2 {Curiously, this move, natural as it seems, is a serious mistake.} ( 7.Bg5 {is the main move.} ) 7...Nd4 $1 {Now Black is already clearly better. The problem is that the b5-bishop is in trouble. This knight jump gains strength because White cannot capture with the f3-knight due to the fork, a common pattern in many opening variations. This is one of the reasons why everyone should study games from different openings—it improves your pattern recognition, a crucial ability to achieve chess mastery.} 8.Ba4 ( 8.Bxd4 exd4 9.Ne2 c6 {is also better for Black. This was played in Neiksans-Malakhov, Warsaw (rapid) 2012.} ) 8...c6 $1 {Black prepares both b7-b5 and d7-d5.} 9.h3 {This move is useful to avoid Bg4 in some lines.} ( 9.Bxd4 {This doesn't solve White's problems. There is a very instructive variation:} 9...exd4 10.Ne2 d5 11.e5 ( 11.exd5 Nxd5 $1 {is better for Black since} 12.Nexd4 $2 Bg4 {gives a winning initiative for the sacrificed pawn.} ) 11...Nd7 12.c3 ( 12.Nexd4 Nxe5 13.Nxe5 Bxd4 {wins material.} ) 12...Nxe5 $1 13.Nxe5 Rxe5 14.cxd4 Rxe2 $1 15.Qxe2 Bxd4 {With tremendous compensation for the exchange. The computer already evaluates the position as winning for Black.} ) 9...a5 10.Bb3 b5 {Now, White's pawn structure needs to be damaged because he is forced to advance the a-pawn to give room for the b3-bishop.} 11.a4 $2 {This makes things worse. 11.a3 is better.} ( 11.a3 Nxb3 12.cxb3 Bxe3 13.fxe3 {White has better chances to defend here since b5-b4 is not possible now.} ) 11...Nxb3 12.cxb3 Bxe3 13.fxe3 b4 14.Ne2 d5 $1 15.Qc2 Ba6 {White's position collapses. But the adventure is far from over.} 16.Rfd1 Qb6 17.Kf2 Bxd3 $1 {A nice winning blow.} 18.Rxd3 dxe4 19.Rd6 Nd5 $2 {Xiong surely missed something in his calculation. The simple capture on f3 was enough for a winning advantage.} ( 19...exf3 20.Rxc6 Qb7 21.gxf3 Qd7 22.Rh1 Rac8 23.Rc4 Red8 {and Black has a winning positional advantage, with better pieces, a better pawn structure, and a safer king.} ) 20.Qxe4 {Now, the situation is far from clear.} 20...Qc5 21.Rd7 Nf6 22.Qf5 Nxd7 23.Qxd7 Rad8 24.Rc1 $6 ( 24.Qf5 {leads to a complicated endgame after} 24...g6 25.Qe4 f5 26.Qc4+ Qxc4 27.bxc4 {The position is difficult to play, but White is somewhat better.} ) 24...Qxe3+ $1 {The famous trainer Mark Dvoretsky liked to call this tactical theme a \"desperado.\"} 25.Kxe3 Rxd7 26.Rxc6 ( 26.Nd2 $5 {is a more subtle move. The knight heads to c4.} ) 26...Red8 {The computer claims equality here, but the position seems to me to be easier for Black to play. Material imbalances are usually difficult to evaluate, and this position is no exception.} 27.Nc1 $6 ( 27.Ke4 f6 28.g4 $1 {In general, it seems that White should be fast to advance the kingside pawns to achieve counterplay.} 28...Rd3 29.Nc1 Rd1 30.Ne2 {with equal chances.} ) 27...f6 28.Rc5 ( 28.g4 $1 ) 28...Rd1 29.Rc2 Kf7 30.Ne2 $5 {A tricky move, offering Back the chance to check on d3.} 30...R1d3+ 31.Ke4 $2 {The losing mistake.} ( 31.Kf2 Ke6 {Black is slightly better, but two knights are very dangerous when there are only a few minutes left on the clock.} ( 31...Rxb3 $2 32.Nc1 {and the rook is trapped.} ) ( 31...e4 32.Nfd4 $1 R3xd4 33.Nxd4 Rxd4 34.Ke3 {and White has an easy draw in this rook endgame, for instance:} 34...Rd5 ( 34...Rd3+ 35.Kxe4 Rxb3 36.Kd5 {and the king is too active.} ) 35.Kxe4 Re5+ 36.Kf3 ) ) 31...Ke6 32.Rc6+ R3d6 33.Rxd6+ Rxd6 {The exchange of rooks clearly favors Black. Now it's difficult for White to protect the queenside weaknesses.} 34.Ke3 ( 34.g4 g6 {doesn't make much of a difference. Black will play f6-f5 anyway.} ) 34...f5 $19 35.Nc1 Rd1 36.Nd3 {This allows a liquidation to a winning king and pawn endgame, but the position is lost anyway.} ( 36.Ne2 Rb1 {and the b2-pawn falls.} ) 36...Rxd3+ $1 37.Kxd3 e4+ 38.Ke3 exf3 39.gxf3 g5 {A textbook example of the merits of having a superior pawn structure. White is essentially a pawn down.} 40.Kd4 h5 41.Kd3 Kd5 42.Ke2 Kd4 43.Kd2 g4 44.hxg4 fxg4 45.Ke2 gxf3+ 46.Kxf3 Kd3 0-1

[Event "Sinquefield Cup 2022"]
[Site "Chess.com"]
[Date "2022.09.03"]
[Round "2"]
[White "Niemann, Hans Moke"]
[Black "Mamedyarov, Shakhriyar"]
[Result "1-0"]
[WhiteElo "2687"]
[BlackElo "2758"]
[ECO "A28"]
[EventDate "2022.??.??"]
[Annotator "Rafael Leitão"]
[PlyCount "98"]
[Beauty "7010749780027"]
[EventType "swiss"]
[EventRounds "9"]
[TimeControl "5400+30"]

{Hans Niemann is a very popular figure right now in the chess world. He gave some hilarious interviews during the St. Louis Rapid and Blitz Championship, and those were always a joy to watch. He is young, confident, and plays all his games to win; he is never afraid even when facing the absolute elite of chess. More than all this, what strikes me as particularly interesting about this player is that he seems to work very hard on his chess, and his rise to the top has been meteoric. His opponent in this game is the already legendary Shakhriyar Mamedyarov, a player who is admired all over the world for his fearless style. This clash promised and delivered fireworks.} 
1.c4 e5 2.Nc3 Nf6 3.Nf3 Nc6 4.e4 {This is currently a fashionable variation of the English Four Knights Opening. It's curious that I have become a sort of \"specialist\" in this line, although I have never played it in an official over-the-board game. But times have changed, and when searching in an online database, I found no fewer than 16 of my own games, all played in Titled Tuesdays. Of course, the reader can find more qualified players to follow in case they decide to study this variation, but I must say my score is not bad at all. Given my poor Titled Tuesday record, this shows that this line must be really very good for White.} 4...Bc5 ( 4...Bb4 {is a more reliable move.} ) 5.Nxe5 $1 {This is the point; otherwise, Black has very comfortable play.} 5...Nxe5 ( 5...Bxf2+ $2 {is a typical resource, but here it's just losing.} 6.Kxf2 Nxe5 7.d4 {and White has an overwhelming advantage. I played a few online games in this position, but since they were not played in any official event, they cannot (luckily) be found.} ) ( 5...O-O $5 {Nakamura played this against me in a Titled Tuesday once. I was surprised and reacted poorly with} 6.Nxc6 $2 ( 6.Nf3 $1 {is better.} 6...Nxe4 7.Nxe4 Re8 8.d3 f5 9.Be2 fxe4 10.dxe4 {with the advantage.} ) 6...dxc6 {Black has great compensation for the pawn.} ) 6.d4 Bb4 7.dxe5 Nxe4 {Now White has a difficult decision between 8.Qd4 and 8.Qf3. To me, it's not clear which is better, but the latter is more popular these days.} 8.Qf3 ( 8.Qd4 Nxc3 9.bxc3 Be7 10.Qg4 {with a complicated game.} ) 8...Nxc3 ( 8...Qh4 $2 {loses after} 9.g3 Ng5 10.Qe2 Qe4 11.Bxg5 Bxc3+ 12.bxc3 Qxh1 13.f3 {and the h1-queen will soon be captured.} ) 9.bxc3 Ba5 ( 9...Bc5 {This was played against me by German GM Rasmus Svane.} 10.Qg3 g6 $2 ( 10...Kf8 {is necessary.} ) 11.Bd3 {and I had such a good position that even my poor play was unable to spoil it.} ) 10.Bf4 O-O 11.O-O-O $5 {It looks crazy for the untrained (or unprepared) eye to direct the king toward such a scattered pawn structure. But if the computers say it's good, we have to study it. More conservative (or lazier) players might consider 11.Rd1 or 11.Be2 and castling short.} 11...Qe7 12.Kb2 {This is necessary to avoid a queen invasion.} 12...Rb8 $1 {An excellent move, creating an x-ray with the king and getting ready for counterplay with b7-b5. This is still mainstream opening theory.} 13.Qe3 $1 {A strong prophylactic move. White gets ready to meet 13...b5 with 14.c5. If White manages to stop Black's counterplay on the queenside, then he is ready for a devastating kingside attack. Let's not forget that Black's king is completely abandoned by his pieces. When the bishop gets to d3, checkmate is going to be a real possibility.} ( 13.Bd3 {This was played by Carlsen against Caruana, when all this was still new to everyone. Black has good counterplay after} 13...b5 $1 14.cxb5 Bb7 {Carlsen - Caruana, Douglas 2019.} ) 13...b6 $6 $146 {This is a new and strange move. Black's counterplay is usually connected with b7-b5, so why advance this move only one square $2} ( 13...b5 {was tried in a few games.} 14.c5 $1 b4 15.c4 b3 16.a3 $1 {and it seems Black still has problems to solve.} ( 16.axb3 $6 Bb4 ) ) ( 13...Bb6 {was played in a recent email game and is the first suggestion of the computer. I guess future games will say whether this move is enough to solve Black's problems.} ) 14.Bd3 ( 14.h4 $1 {is a typical plan and also very strong. White prepares 15.Rh3, and the rook is useful both on attack and defense.} ) 14...Qe6 ( 14...f6 {Maybe Black should try this move. With the bishop on d3, 15.exf6 is not so good because the c3-pawn will be hanging after 15...Qxf6.} ) 15.Qg3 {Not the most accurate. I think 15.Qe4 or 15.h4 is better.} ( 15.Qe4 g6 16.Bh6 Re8 17.Rhe1 {with the advantage.} ) ( 15.h4 $5 {and the idea of Rh3 is also promising.} ) 15...Re8 {The idea of this move is to avoid Bg5.} ( 15...b5 {is interesting. Play might continue:} 16.c5 ( 16.cxb5 {This move is not what White usually wants to play.} 16...Bb7 {With the idea of Bc6 followed by a6 with good compensation.} ) 16...Ba6 {with a very complicated position. One of the computer lines goes} 17.Bg5 b4 18.c4 b3 $1 19.axb3 Bxc4 20.Bxc4 Qxc4 21.Bh6 Qe2+ 22.Ka1 g6 23.Bxf8 Kxf8 24.Qe3 Qxe3 25.fxe3 Bc3+ 26.Ka2 Ke7 {and the e5-pawn will fall, and Black has good drawing chances.} ) 16.Rhe1 {Preparing Bg5 again now that the e5-pawn is protected.} 16...b5 {Mamedyarov starts his counterplay. This is a critical position.} 17.c5 $2 {This is a mistake because the e1-rook will be hanging. I understand Niemann probably saw this and decided to sacrifice the exchange, but the stone- hearted computer is not impressed.} ( 17.cxb5 $1 {is better with big complications.} ) 17...b4 18.c4 b3 $1 {This is the point.} 19.axb3 Bxe1 20.Rxe1 a5 $2 {After this move, the exchange sacrifice is fully justified, and White achieves enormous compensation. Black should open the center with 20...d6 or 20...d5.} ( 20...d6 $1 {20...d5 is the same.} 21.cxd6 cxd6 {and White has some compensation for the exchange, but objectively Black is better.} ) 21.Bd2 $1 {A very good move, preparing to meet 21...a4 with 22.b4.} ( 21.Qh4 g6 22.Bd2 $1 {is also good with the same idea.} ) 21...Ba6 ( 21...a4 22.b4 {with a winning position for White due to the big space advantage. The rooks have no columns to control, and the king is very insecure.} ) 22.Qh4 g6 23.Qd4 $1 {I like this move a lot, centralizing the queen.} ( 23.Bxa5 $6 {is not so clear after} 23...Qc6 $1 ) 23...Rb7 {This is the only plan for counterplay. The game flows logically.} 24.Bxa5 Reb8 25.b4 Rxb4+ $1 {Otherwise Black can resign.} 26.Bxb4 Rxb4+ 27.Kc3 Rb8 28.Be4 Qe8 ( 28...Bxc4 $5 {is an interesting try to complicate the game. After} 29.Qxc4 Qxe5+ 30.Kd3 Qb2 $1 {White has to find the precise} 31.Bd5 $1 Qxf2 32.Qc3 $1 {Everything is protected, and the position is winning.} ) 29.Bd5 ( 29.Rd1 $1 {is more accurate.} ) 29...Bb7 30.Rb1 Ba8 $2 {This move loses.} ( 30...Bxd5 $1 {is the only chance. After} 31.Rxb8 Qxb8 32.cxd5 ( 32.Qxd5 Qe8 $14 ) 32...Qb5 {Black can fight for the draw.} ) 31.Rxb8 Qxb8 32.Bxa8 Qxa8 33.Qxd7 Qa1+ 34.Kb4 Qxe5 35.Kb5 {The c7-pawn will fall, and White has an easy winning position. This is a good time to pay respect for the doubled pawns, an often-misunderstood positional element of chess. Doubled pawns are usually not as bad as people think. Here, for instance, this extra pawn on c4 serves as a shelter for the king against the checks.} 35...h5 36.Kc6 Qxh2 37.Qd8+ Kh7 38.Qf6 Qxg2+ 39.Kxc7 {The rest is easy.} 39...Qe4 40.Qxf7+ Kh6 41.Qd5 Qe7+ 42.Kb6 Qf6+ 43.c6 Qxf2+ 44.Kb7 Qb2+ 45.Qb5 Qg2 46.Kb8 h4 47.c7 Qg3 48.Kb7 Qf3+ 49.Qd5 Qb3+ 1-0